Cogmind - Beta 16 @@@ ROGUE MODE // 2025.11.25 @ 05:23:22 Player: Red Box Result: Destroyed by RI-A1Z(h) with Bolt Gun Performance ------------- Evolutions (0) 0 Regions Visited (5) 1000 Robots Destroyed (54) 270 Value Destroyed (1416) 1416 Prototype IDs (24) 480 Alien Tech Used (0) 0 Bonus (1004) 1004 TOTAL SCORE: 4170 Bonus ------- Follower Combat Kills 204 Registered with UFD 300 Met Optimus in HQ 500 Cogmind --------- Core Integrity 0/250 Matter 217/300 Energy 173/265 System Corruption 0% Temperature Warning (320) Movement Walking (400) Ox4 Location -8/Scraptown Parts ------- > --- POWER (1) -------- Improved Ion Engine > --- PROPULSION (2) --- Improved Aluminum Leg > --- UTILITY (2) ------ High-capacity Storage Unit Makeshift Light Armor Plating > --- WEAPON (2) ------- Heavy Machine Gun Shock Bomb Launcher > --- INVENTORY (20) --- Cargo Legs Scrap Suit Advanced Signal Interpreter Remote Shield Makeshift System Shield A0-MCA's Component Scanner Mapping Drone Bay (3/3) Bomb Drone Bay Plasma Rifle Plasma Cannon Heavy Battle Rifle Magnetic Acceleration Cannon Subdweller Shrapnel Launcher Great Axe Peak State ------------ > --- POWER ------------ Improved Ion Engine > --- PROPULSION ------- Improved Aluminum Leg Improved Aluminum Leg > --- UTILITY ---------- High-capacity Storage Unit Makeshift Light Armor Plating > --- WEAPON ----------- Plasma Cannon Heavy Machine Gun > --- INVENTORY -------- Cargo Legs Scrap Suit Advanced Signal Interpreter Remote Shield Makeshift System Shield A0-MCA's Component Scanner Mapping Drone Bay Bomb Drone Bay Plasma Rifle Heavy Battle Rifle Magnetic Acceleration Cannon Shock Bomb Launcher Subdweller Shrapnel Launcher Great Axe [Rating: 29] Favorites ----------- Power Improved Ion Engine Engine Improved Ion Engine Propulsion Improved Aluminum Leg Treads Light Treads Leg Improved Aluminum Leg Wheel Compact Wheel Utility High-capacity Storage Unit Device Improved Terrain Scanner Storage High-capacity Storage Unit Processor Advanced Visual Processing Unit Hackware System Shield Protection Medium Armor Plating Weapon Slug Cannon Energy Gun Plasma Rifle Energy Cannon Light EM Pulse Cannon Ballistic Gun Heavy Machine Gun Ballistic Cannon Slug Cannon Launcher Subdweller Shrapnel Launcher Impact Weapon Flail Slashing Weapon Scythe Special Melee Weapon Datajack Build | -11 -10 -10 -10 -8 -8 ------- Run | Yrd Mat Min Sub Rec Scr Slots Evolved . | . . . . . . Power . | . . . . . . Propulsion . | . . . . . . Utility . | . . . . . . Weapon . | . . . . . . Parts Attached 62 | 7 16 3 14 7 15 Power 9 | 1 1 1 4 2 . Engine 9 | 1 1 1 4 2 . Core . | . . . . . . Reactor . | . . . . . . Propulsion 11 | 2 5 1 2 1 . Treads 2 | . 1 1 . . . Leg 7 | 2 2 . 2 1 . Wheel 2 | . 2 . . . . Hover . | . . . . . . Flight . | . . . . . . Utility 18 | 2 4 1 3 2 6 Device 2 | 1 . . . . 1 Storage 6 | 1 3 . . . 2 Processor 1 | . . . . 1 . Hackware 1 | . . . . 1 . Protection 8 | . 1 1 3 . 3 Artifact . | . . . . . . Weapon 24 | 2 6 . 5 2 9 Energy Gun 2 | . . . . . 2 Energy Cannon 5 | . 4 . . . 1 Ballistic Gun 8 | 2 2 . 1 . 3 Ballistic Cannon 3 | . . . 2 1 . Launcher 2 | . . . 1 . 1 Special Weapon . | . . . . . . Impact Weapon 1 | . . . 1 . . Slashing Weapon 2 | . . . . 1 1 Piercing Weapon . | . . . . . . Special Melee Weapon 1 | . . . . . 1 Unidentified Prototypes . | . . . . . . Parts Lost 15 | . 2 1 6 1 5 Power 1 | . . . 1 . . Propulsion 4 | . . . 2 . 2 Utility 4 | . . 1 2 . 1 Weapon 6 | . 2 . 1 1 2 Highest Loss Streak 4 | . 2 1 2 1 4 To Critical Strikes . | . . . . . . Average Backups 15 | 4 10 14 16 16 17 Power . | . . . . . . Propulsion 2 | 3 4 4 3 3 2 Utility 5 | . 1 4 5 6 6 Weapon 7 | . 4 5 7 7 8 Tool/Special . | . . . . . . Unused Backups 20 | . 2 . 3 2 13 Power . | . . . . . . Propulsion 3 | . . . 1 . 2 Utility 9 | . . . 1 1 7 Weapon 8 | . 2 . 1 1 4 Tool/Special . | . . . . . . Average Slot Usage (%) 99 | . 99 100 99 99 99 Engine 13 | . 14 14 13 14 14 Treads 2 | . 2 14 2 . . Leg 23 | . 22 . 23 27 28 Wheel 2 | . 2 14 2 . . Device 1 | . 11 . . . . Storage 13 | . 14 14 13 14 14 Protection 12 | . 2 14 13 13 13 Energy Cannon 5 | . 20 25 1 1 . Ballistic Gun 9 | . 6 2 7 . 14 Ballistic Cannon 12 | . . . 16 25 12 Peak Build Rating 29 | 9 14 14 21 24 29 Average Rating 20 | 5 11 12 18 22 26 On Entrance 13 | . 9 12 14 21 23 Avg Prop Armor Cover (%) 6 | . 8 4 8 . . Naked Turns . | . . . . . . Heaviest Build 67 | 11 59 60 62 66 67 Greatest Support 26 | 20 26 20 26 26 26 Greatest Overweight (x) 5 | 1 5 3 3 5 2 Average Overweight (x) 1 | . 1 1 2 2 2 Largest Inventory Capacity 20 | 8 20 20 20 20 20 Average Capacity 18 | 7 11 15 19 20 20 Most Carried 20 | 6 16 20 20 20 20 Average Carried 17 | 4 10 15 19 19 19 Final Capacity 20 | 8 15 20 20 20 20 Final Carried 20 | 6 15 20 20 20 17 Class Distribution -------------------- 56% | Commander-Mutant 43% | Mutant Dominant Class ---------------- Mutant | -10/Materials Commander-Mutant | -10/Mines Mutant | -10/Subcaves Commander-Mutant | -8/Recycling Commander-Mutant | -8/Scraptown Resources | -11 -10 -10 -10 -8 -8 ----------- Run | Yrd Mat Min Sub Rec Scr Matter Collected 2559 | 282 470 131 1092 320 264 Remotely . | . . . . . . Salvage Created 1921 | 121 580 213 373 346 288 Parts 97 | 3 25 16 27 14 12 Haulers Intercepted 2 | . 2 . . . . Recyclers Shooed . | . . . . . . Parts Field Recycled . | . . . . . . Retrieved Matter . | . . . . . . Parts Self-Destructed 10 | . . . 10 . . Prevented . | . . . . . . Parts Restored . | . . . . . . Kills | -11 -10 -10 -10 -8 -8 ------- Run | Yrd Mat Min Sub Rec Scr Combat Hostiles Destroyed 44 | . 13 9 11 5 6 Guns 14 | . 4 3 6 . 1 Cannons 22 | . 7 5 2 5 3 AOE 7 | . 2 . 3 . 2 Classes Destroyed 14 | 2 4 . 2 1 5 Worker 1 | . . . . . 1 Tunneler 1 | 1 . . . . . Hauler 2 | . 2 . . . . Recycler 3 | 1 . . . 2 . Watcher 3 | . 3 . . . . Swarmer 16 | . 6 7 3 . . Grunt 10 | . 7 2 . 1 . Duelist 2 | . . . . 2 . Sentry 3 | . . . 1 2 . Subdweller 7 | . . . 7 . . Federalist 2 | . . . . . 2 Ranger 1 | . . . . . 1 Scrapper 2 | . . . . . 2 Savage 1 | . . . . . 1 Best Kill Streak 5 | 1 3 3 3 5 3 Combat Bots Only 3 | . 3 3 3 2 3 Max Kills in Single Turn 2 | 1 1 1 2 1 1 Gunslinging . | . . . . . . Exploded 2 | . 1 . 2 . 1 Melee . | . . . . . . Uniques/NPCs Destroyed . | . . . . . . Combat | -11 -10 -10 -10 -8 -8 -------- Run | Yrd Mat Min Sub Rec Scr Hostile Shots Fired 207 | . 37 50 58 19 43 Missed 50 | . 12 11 14 7 6 Hits 157 | . 25 39 44 12 37 Melee 1 | . . . . 1 . Projectile 156 | . 25 39 44 11 37 Critical Strikes 3 | . . 2 . . 1 Damage Taken 2454 | . 310 403 926 189 626 Core 251 | . 69 34 108 14 26 Absorbed by Shields . | . . . . . . Regen/Repaired (Parts) 292 | . 292 . . . . Core Remaining (%) 100 | 100 . . . . . Volleys Fired 147 | 6 43 15 50 16 17 Largest 2 | 2 2 2 2 2 2 Hottest 112 | 40 112 112 112 96 110 Shots Fired 279 | 12 85 30 93 31 28 Gun 119 | 12 32 9 53 . 13 Cannon 151 | . 53 21 35 31 11 Launcher 9 | . . . 5 . 4 Special . | . . . . . . Kinetic 185 | 12 32 9 86 26 20 Thermal 6 | . . . . . 6 Explosive . | . . . . . . Electromagnetic 88 | . 53 21 7 5 2 Robot Hit Streak 16 | 4 16 8 9 4 8 Robot Miss Streak 9 | 1 9 4 2 6 2 Penetration Max . | . . . . . . Secondary Targets . | . . . . . . Shots Hit Robots 163 | 9 46 16 60 14 18 Core Hits 72 | 4 21 9 22 8 8 Critical Kills 2 | . . . 1 . 1 Critical Parts Destroyed 1 | . . . . . 1 Critical Strikes 7 | . . 1 2 2 2 Destroy 4 | . . . 2 . 2 Blast 1 | . . . . 1 . Corrupt 2 | . . 1 . 1 . Melee Attacks 40 | . . . 32 3 5 Impact 32 | . . . 32 . . Slashing 6 | . . . . 3 3 Piercing . | . . . . . . Sneak Attacks 2 | . . . . . 2 Combat Hostiles . | . . . . . . Follow-up Attacks . | . . . . . . Damage Inflicted 4069 | 75 1145 356 1529 427 537 Guns 1003 | 75 154 43 594 . 137 Cannons 2226 | . 821 313 440 427 225 Explosions 840 | . 170 . 495 . 175 Melee . | . . . . . . Ramming . | . . . . . . Kinetic 2360 | 75 154 43 1412 354 322 Thermal 302 | . 170 . . . 132 Explosive . | . . . . . . Electromagnetic 1407 | . 821 313 117 73 83 Impact . | . . . . . . Slashing . | . . . . . . Piercing . | . . . . . . Highest Corruption 3 | . 2 2 2 3 . Average Corruption 2 | . 1 2 2 2 . Corruption Purged . | . . . . . . Corruption Blocked . | . . . . . . Effects 115 | . 13 22 57 23 . Message Errors 33 | . 3 1 21 8 . Matter Fused 27 | . 2 11 11 3 . Heat Flow Errors 12 | . 3 1 6 2 . Energy Discharges 11 | . 1 . 8 2 . Parts Fused 3 | . 2 1 . . . Data Loss (minor) 15 | . . 6 5 4 . Data Loss (major) 7 | . 1 2 3 1 . Misfires 2 | . . . 2 . . Alerts 4 | . 1 . 1 2 . Weapon Failures 1 | . . . . 1 . Overload Shots . | . . . . . . Overflow Damage 120 | . 50 6 46 18 . Projectiles 70 | . 46 6 . 18 . Explosions 50 | . 4 . 46 . . Melee . | . . . . . . Knockbacks 7 | . . . 3 3 1 Impact . | . . . . . . Kinetic 7 | . . . 3 3 1 Secondary . | . . . . . . Self-Inflicted Damage 42 | . 42 . . . . Shots 1 | . 1 . . . . Rammed . | . . . . . . Targets Rammed . | . . . . . . Kicked . | . . . . . . Crushed . | . . . . . . Highest Temperature 344 | . 237 300 234 140 344 Average Temperature 92 | . 68 102 98 42 183 Received Heat Transfer 745 | . 96 132 96 90 331 Effects 4 | . . 2 . . 2 Energy Bleed 3 | . . 2 . . 1 Interference 1 | . . . . . 1 Siege Activations . | . . . . . . Martial Activations . | . . . . . . Shielding Activations . | . . . . . . Robots Disrupted . | . . . . . . Combat Hostiles . | . . . . . . Robots Corrupted 1 | . . 1 . . . Combat Hostiles 1 | . . 1 . . . Parts Fried 4 | . 3 1 . . . Impact Corruptions . | . . . . . . Robots Melted . | . . . . . . Combat Hostiles . | . . . . . . Parts Melted 2 | . . . . . 2 Heat Transferred 474 | . 250 . . . 224 Parts Sabotaged . | . . . . . . Parts Stolen . | . . . . . . Parts Stripped . | . . . . . . Power Chain Reactions 2 | . 2 . . . . Alert | -11 -10 -10 -10 -8 -8 ------- Run | Yrd Mat Min Sub Rec Scr Maximum Alert Level . | . . . . . . Low Security (%) 100 | 100 100 100 . 100 . Level 1 . | . . . . . . Level 2 . | . . . . . . Level 3 . | . . . . . . Level 4 . | . . . . . . Level 5 . | . . . . . . High Security . | . . . . . . Max Security . | . . . . . . Peak Influence 149 | 5 138 149 . 69 . Initial 14 | . . 2 . 14 . Average 25 | 1 31 30 . 15 . Influence Increases 1346 | 10 443 348 120 425 . Destroy 0b10 Robot/C 760 | . 260 260 80 160 . Destroy 0b10 Robot/NC 45 | 10 25 . . 10 . Destroy Leader 130 | . 70 50 10 . . Allied During Kill 56 | . . 38 . 18 . Successful Hack 60 | . 36 . . 24 . Select Force Hacks 180 | . 30 . . 150 . Disable Machine 15 | . . . . 15 . Destroy Structure 55 | . 7 . . 48 . Lose Combat Pursuer 45 | . 15 . 30 . . Influence Decreases 1346 | 10 436 355 90 455 . Entered New Map 21 | . . 5 . 16 . Time Decay 1215 | 10 416 340 70 379 . Lost Part 60 | . 20 10 20 10 . Lost Ally 50 | . . . . 50 . Squads Dispatched 3 | . 3 . . . . Investigation 2 | . 2 . . . . Extermination . | . . . . . . Reinforcement 1 | . 1 . . . . Assault . | . . . . . . Garrison . | . . . . . . Intercept . | . . . . . . Searches Triggered . | . . . . . . Construction Impeded . | . . . . . . Haulers Reinforced . | . . . . . . Active Scanning Responses . | . . . . . . Cargo Convoy Interrupts . | . . . . . . Stealth | -11 -10 -10 -10 -8 -8 --------- Run | Yrd Mat Min Sub Rec Scr Distress Signals 1 | . 1 . . . . Communications Jammed . | . . . . . . Distress Signals . | . . . . . . Times Spotted 71 | . 24 13 18 6 10 Peak Tracking Total 6 | . 3 4 6 3 4 Tactical Retreats 2 | . 1 . 1 . . Traps | -11 -10 -10 -10 -8 -8 ------- Run | Yrd Mat Min Sub Rec Scr Traps Triggered 4 | . 2 . 2 . . Indirectly . | . . . . . . Trap Hack Attempts . | . . . . . . Triggered . | . . . . . . Disarmed . | . . . . . . Reprogrammed . | . . . . . . Reused 1 | . . . . . 1 Traps Extracted . | . . . . . . Installed 3 | . . . 2 . 1 Triggered . | . . . . . . Most Traps Carried 5 | . . 5 5 . 1 Machines | -11 -10 -10 -10 -8 -8 ---------- Run | Yrd Mat Min Sub Rec Scr Machines Disabled 5 | . . . 1 1 3 Max in Single Turn 1 | . . . 1 1 . Machines Repaired . | . . . . . . Machines Dismantled . | . . . . . . Machines Sabotaged . | . . . . . . Overloaded Fab Kills . | . . . . . . Hacking | -11 -10 -10 -10 -8 -8 --------- Run | Yrd Mat Min Sub Rec Scr Machines Accessed 34 | . 9 1 3 11 10 Terminals 12 | . 6 . . 6 . Fabricators . | . . . . . . Repair Stations 1 | . 1 . . . . Recycling Units 7 | . 2 . . 5 . Scanalyzers . | . . . . . . Garrison Access . | . . . . . . Total Hacks 134 | . 33 1 4 40 56 Successful 105 | . 22 1 4 22 56 Failed 29 | . 11 . . 18 . Catastrophic 2 | . . . . 2 . Database Lockouts . | . . . . . . Manual 46 | . 22 . . 24 . Terminals 46 | . 22 . . 24 . Fabricators . | . . . . . . Repair Stations 4 | . 4 . . . . Recycling Units 23 | . 7 . . 16 . Scanalyzers . | . . . . . . Garrison Access . | . . . . . . Terminal Hacks 71 | . 6 1 4 4 56 Record 50 | . . . 1 . 49 Robot Analysis 13 | . 3 . . 4 6 Open Door 2 | . . 1 1 . . Terminal Index 1 | . 1 . . . . Locate Traps 2 | . 2 . . . . Proto ID Catalog 2 | . . . 1 . 1 Release Object 1 | . . . 1 . . Fabricator Hacks . | . . . . . . Repair Station Hacks 4 | . 4 . . . . Scan Component 2 | . 2 . . . . Repair 2 | . 2 . . . . Recycling Unit Hacks 6 | . 1 . . 5 . Retrieve Components 6 | . 1 . . 5 . Scanalyzer . | . . . . . . Garrison Access Hacks . | . . . . . . Unauthorized Hacks 23 | . 10 . . 13 . Terminals 17 | . 9 . . 8 . Assimilate 1 | . 1 . . . . Botnet 5 | . 2 . . 3 . Operators 1 | . 1 . . . . Skim 10 | . 5 . . 5 . Fabricators . | . . . . . . Repair Stations . | . . . . . . Recycling Units 6 | . 1 . . 5 . Tunnel 6 | . 1 . . 5 . Scanalyzers . | . . . . . . Garrison Access . | . . . . . . Data Cores Recovered . | . . . . . . Used . | . . . . . . Hacking Detections 18 | . 8 . . 10 . Full Trace Events 2 | . 1 . . 1 . Feedback Events 1 | . . . . 1 . Corruption 1 | . . . . 1 . Feedback Blocked . | . . . . . . Robot Schematics Acquired . | . . . . . . Robots Built . | . . . . . . Authchips . | . . . . . . Time . | . . . . . . Total Robot Build Rating . | . . . . . . Part Schematics Acquired . | . . . . . . Parts Built . | . . . . . . Authchips . | . . . . . . Time . | . . . . . . Total Part Build Rating . | . . . . . . Part Studies Acquired . | . . . . . . Parts Repaired 2 | . 2 . . . . Time 58 | . 58 . . . . Parts Recycled . | . . . . . . Recycled Matter . | . . . . . . Retrieved Matter . | . . . . . . Retrieved Components 26 | . 2 . . 24 . Parts Scanalyzed . | . . . . . . Part Schematics Acquired . | . . . . . . Parts Damaged . | . . . . . . Bothacking | -11 -10 -10 -10 -8 -8 ------------ Run | Yrd Mat Min Sub Rec Scr Used RIF Installer . | . . . . . . Robots Hacked 2 | . . . . . 2 Non-combat . | . . . . . . Combat 2 | . . . . . 2 Robot Hacks Applied 2 | . . . . . 2 parse_system 2 | . . . . . 2 Relay Couplers Released . | . . . . . . Fabnet Peak Effective % . | . . . . . . Robots Rewired 10 | . . . . 10 . Allies Hacked . | . . . . . . Hacks Repelled . | . . . . . . Allies | -11 -10 -10 -10 -8 -8 -------- Run | Yrd Mat Min Sub Rec Scr Total Allies 14 | . 1 3 . 10 . Largest Group 8 | . 1 4 4 8 7 Highest-Rated Group 130 | . 10 50 50 130 116 Highest-Rated Ally 34 | . 10 16 16 34 34 Total Orders 18 | . 1 . 1 15 1 STAY 7 | . 1 . 1 5 . FOLLOW 8 | . . . . 8 . PICKUP 2 | . . . . 1 1 COLLECT 1 | . . . . 1 . Ally Attacks 46 | . . 17 . 19 10 Total Damage 814 | . . 216 . 207 391 Kills 10 | . . 4 . 3 3 Allies Corrupted 1 | . . . . 1 . Allies Melted 5 | . . . . . 5 Intel | -11 -10 -10 -10 -8 -8 ------- Run | Yrd Mat Min Sub Rec Scr Active Infowar (turns) 1849 | 11 1837 . . 1 . Optics 1 | . . . . 1 . Terrain 1848 | 11 1837 . . . . Robot Analysis Total 13 | . 3 . . 4 6 Derelict Logs Recovered 4 | . . 1 . . 3 Drone Launches . | . . . . . . Drone Recoveries . | . . . . . . Exploration | -11 -10 -10 -10 -8 -8 ------------- Run | Yrd Mat Min Sub Rec Scr Turns Passed 17353 | 87 2280 1382 4931 1648 7025 Spaces Moved 7002 | 49 1150 648 1960 549 2646 Core 7 | 7 . . . . . Treads 394 | . . 394 . . . Legs 5684 | 42 920 . 1527 549 2646 Wheels 917 | . 230 254 433 . . Hover . | . . . . . . Flight . | . . . . . . Fastest Speed 50 | 50 120 130 120 260 260 Average Speed 231 | 111 171 199 232 260 260 Slowest Speed 470 | 120 190 320 260 470 260 Overloaded Moves . | . . . . . . Propulsion Burnouts . | . . . . . . Robots Hopped . | . . . . . . Potential Cave-ins . | . . . . . . Cave-ins Triggered . | . . . . . . Exploration Rate (%) 74 | 4 97 93 59 99 94 Regions Visited 5 Branch Regions 4 Pre-discovered Areas 14 | . 1 1 . 5 7 Known Exits Taken 2 | . . . 1 1 . Unknown Exits Taken 3 | 1 1 1 . . . Scrap Searched 16 | . . 1 10 . 5 Spaces Dug 14 | . . . 7 3 4 Terrain Destroyed 111 | . 5 . 75 14 17 Melee 10 | . . . 4 3 3 Projectile 21 | . . . 6 11 4 AOE 80 | . 5 . 65 . 10 Terrain Rammed . | . . . . . . Walls Destroyed . | . . . . . . Machines Disabled . | . . . . . . Actions | -11 -10 -10 -10 -8 -8 --------- Run | Yrd Mat Min Sub Rec Scr Total 7855 | 68 1382 710 2200 733 2762 Wait 303 | 1 134 34 53 48 33 Move 6997 | 48 1149 647 1959 548 2646 Hop . | . . . . . . Pick Up 87 | 6 19 7 34 7 14 Fast Attach 27 | 7 3 . 3 4 10 Attach 23 | . 4 1 10 2 6 Detach 3 | . . . 1 2 . Swap 65 | . 16 4 31 6 8 Drop 69 | . 14 2 22 9 22 Fire 147 | 6 43 15 50 16 17 Melee 40 | . . . 32 3 5 Ram . | . . . . . . Kick . | . . . . . . Crush . | . . . . . . Escape Stasis . | . . . . . . Rewire 88 | . . . . 88 . Trap 3 | . . . 2 . 1 Miscellaneous 3 | . . . 3 . . Route ------- -11/Scrapyard -10/Materials (discovered 5 exits: *Mat x3 / *Min x2) -10/Mines (discovered 3 exits: *Mat x2 / *Sub) -10/Subcaves (discovered 3 exits: *Mat x2 / *Rec) -8/Recycling (discovered 2 exits: [*Fac] / *Scr) -8/Scraptown (discovered 2 exits: [*Fac x2]) History --------- Turn | Location | Event 2 | -11/Scrapyard | Met Revision 17 10 | -11/Scrapyard | Discovered new exit (range 16) 88 | -11/Scrapyard | Entered Materials 110 | -10/Materials | Discovered new exit (range 16) 174 | -10/Materials | Discovered new exit (range 14) 318 | -10/Materials | Build established: Mutant 373 | -10/Materials | Discovered new exit (range 15) 633 | -10/Materials | Discovered new exit (range 14) 1275 | -10/Materials | Discovered new exit (range 14) 1400 | -10/Materials | Learned Storage stockpile data 1444 | -10/Materials | Learned location of 1 exit from Recycling 1501 | -10/Materials | Learned Storage garrison access intel 1542 | -10/Materials | Learned location of 2 exits from Subcaves 2205 | -10/Materials | Repaired Hcp. Storage Unit 2241 | -10/Materials | Repaired Autogun 2368 | -10/Materials | Entered Mines 2368 | -10/Mines | Accompanied by 1 ally 2369 | -10/Mines | Identified exit to Materials 2422 | -10/Mines | Found a hidden stash of uninstalled traps 2462 | -10/Mines | Learned Materials garrison access intel 2502 | -10/Mines | Assisted by bots powering up and referring to "LRC-V3" 2704 | -10/Mines | Found the Drone Emporium 2715 | -10/Mines | Found Prototype Device 2758 | -10/Mines | Learned location of Storage (-8) 2790 | -10/Mines | Build established: Commander-Mutant 3569 | -10/Mines | Discovered new exit (range 6) 3750 | -10/Mines | Entered Subcaves 3750 | -10/Subcaves | Accompanied by 4 allies 3751 | -10/Subcaves | Identified exit to Materials 3751 | -10/Subcaves | Identified exit to Recycling 3794 | -10/Subcaves | A swath of the cavern ceiling suddenly collapsed 3959 | -10/Subcaves | A swath of the cavern ceiling suddenly collapsed 4069 | -10/Subcaves | Core integrity fell below 50% 4247 | -10/Subcaves | Build established: Mutant 5152 | -10/Subcaves | Ambushed by Subdweller buried in earth 5598 | -10/Subcaves | Visited 4L-MR0's lab 5909 | -10/Subcaves | Found Cargo Legs 8140 | -10/Subcaves | Core integrity fell below 20% 8681 | -10/Subcaves | Entered Recycling 8682 | -8/Recycling | Identified exit to Scraptown 9136 | -8/Recycling | Build established: Commander-Mutant 9674 | -8/Recycling | Discovered new exit (range 16) 10263 | -8/Recycling | Scanned before Scraplab entrance 10266 | -8/Recycling | Learned location of 1 exit from Lower Caves 10300 | -8/Recycling | Entered Scraplab 10329 | -8/Recycling | Entered Scraptown 10329 | -8/Scraptown | Accompanied by 7 allies 10329 | -8/Scraptown | System corruption cleaned by C-Scrubber 10896 | -8/Scraptown | Scanned Subdweller tech in exchange for log data 10901 | -8/Scraptown | Learned Research trap positions 10904 | -8/Scraptown | Learned location of Armory (-4) 10906 | -8/Scraptown | Learned Factory non-interactive machine intel 10972 | -8/Scraptown | Visited Symbiants 11060 | -8/Scraptown | Visited Cyclists 11391 | -8/Scraptown | Visited Fellowship of the Rings 11451 | -8/Scraptown | Visited Cave Peace 11490 | -8/Scraptown | Visited Awakened 11641 | -8/Scraptown | Visited Junk Repository 11769 | -8/Scraptown | Visited IN-MT5's Study 12325 | -8/Scraptown | Visited UFD Registry 12325 | -8/Scraptown | Registered with UFD as "Hammerform" 12450 | -8/Scraptown | Received an X-ray algorithm 12499 | -8/Scraptown | Visited Science Guys 12601 | -8/Scraptown | Visited LU-1G1's Boring Crew 12819 | -8/Scraptown | Visited Abandonware Association 12868 | -8/Scraptown | Learned abandonware demo "REVENGE.EXE" 12868 | -8/Scraptown | Learned abandonware demo "SHUTEYE.EXE" 13097 | -8/Scraptown | Discovered new exit (range 5) 13217 | -8/Scraptown | Visited Cartography Club 13305 | -8/Scraptown | Visited Analyses Database 13375 | -8/Scraptown | Visited A0-MCA Data Center 13391 | -8/Scraptown | Given a B- rating by A0-MCA 13435 | -8/Scraptown | Visited Derelict Rescue Squad 13498 | -8/Scraptown | Visited Supply Room 13544 | -8/Scraptown | Visited Junk Repository 13828 | -8/Scraptown | Delivered Scrap Shield to a Scientist 15017 | -8/Scraptown | Discovered new exit (range 9) 15305 | -8/Scraptown | Entered Cyclist Reading Room 15316 | -8/Scraptown | Learned location of Zion (-7) 16960 | -8/Scraptown | Met Optimus 16960 | -8/Scraptown | Accepted into 0bPrime 17153 | -8/Scraptown | Civil war broke out across Scraptown 17166 | -8/Scraptown | Found A0-MCA's Component Scanner 17238 | -8/Scraptown | Learned location of Hub_04(d) (-4) 17238 | -8/Scraptown | Learned 24 Factory zone layouts 17238 | -8/Scraptown | Learned 8 Upper Caves zone layouts 17238 | -8/Scraptown | Learned 16 Upper Caves zone layouts 17238 | -8/Scraptown | Learned 12 Proximity Caves zone layouts 17238 | -8/Scraptown | Learned 4 Hub_04(d) zone layouts 17238 | -8/Scraptown | Learned location of 3 exits from Upper Caves 17238 | -8/Scraptown | Learned location of 3 exits from Proximity Caves 17345 | -8/Scraptown | Found Scrap Suit 17354 | -8/Scraptown | Destroyed by RI-A1Z(h) with Bolt Gun Last Messages --------------- 17293_ 8M-1FT(h): "Down with Optimus!" 17293_ Acquired 4 matter. 17296_ Acquired 54 matter. 17301_ Acquired 6 matter. 17321_ Salvaging Laser melted. 17321_ T8-YWJ(g) destroyed. 17326_ Bolt penetrates Wall. 17329_ Minigun destroyed. 17331_ Overheating: Energy bleed (-64). 17331_ Imp. Aluminum Leg destroyed. 17332_ Mak. Salvage Targeting Computer melted. 17332_ DG-1V7(j) destroyed. 17338_ YH-CFO(g) destroyed. 17344_ Bolt penetrates Wall. 17344_ Hrd. Medium Armor Plating destroyed. 17345_ Acquired Scrap Suit. 17347_ The unstable cave ceiling collapses. 17349_ Bolt penetrates Wall. 17352_ Imp. Aluminum Leg destroyed. 17354_ Bolt penetrates Wall. Map ----- +----------------------------------------------------+ | | | | | | | | | | | ?????????????????????????????????????????????????? | | ?????????????????????????????????????????????????? | | ?????????????????????????????????????????????????? | | ?????????????????????????????????????????????????? | | ?????????????????????????????????????????????????? | | ?????????????????????????????????????????????????? | | ?????????????????????????????????????????????????? | | ?????????????????????????????????????????????????? | | ?????????????????????????????????????????????????? | | ?????????????????????????????????????????????????? | | ?????????????????????????????????????????????????? | | ????????????????????????#####????????????????????? | | ????????????????????????# #????????????????????? | | ############???####?????#=%!#????????????????????? | | "##""|##"""#??## ##????#!<=#????????????????????? | | !##"" ##!!"#### #####[gj!##???????????????????? | | %[![ #???????????????????? | | %* #???????????????????? | | ############### ######=####???????????????????? | | ??????????????## ##???##%##?????????????????????? | | ???????????????# #??#?#[@=#?????????????????????? | | ####???????????# #?## # #*#####?????????????????? | | # ############# # # =! = # ##????????????????? | | # ##"""""""""## # # !%] ; "#????????????????? | | # ## " " " ## ## ###*%| "##???????????????? | | # ## ## ##?# !# ; ##??????????????? | | ## "# #" ## ## #X"##; % #??????????????? | | ## ## "#X#" ## ## # #### "; ; ##??????????????? | | # ## "###" ## # ?# ?#! %;##???????????????? | | # ## """"" ## ######"%###";##????????????????? | | # ## ## # =!= #?????????????????? | | ## ## ! %[ #?????????????????? | | ####### ## # ###########?????????????????? | | #####" # ##???#####??????????????????? | | """" """ %! " "#???"""""??????????????????? | | =% /%= "#?? " "" "#????????????????? | | % =! [ "#?? " "" "#????????????????? | | % "#?" "#????????????????? | | "##" """"#????????????????? | | % " "#????????????????? | | """"" " " "##" " "" "#????????????????? | | """""" " """"""" "#?" " "" ??????????????????? | | ##############"" "#?? """"???????????????????? | | ##????????#"" "#########??????????????????? | | X"#????????#" *% "## """"#??????????????????? | +----------------------------------------------------+ Best States ------------- Heat Dissipation 25 Energy Generation 15 Energy Capacity 265 Matter Stores 300 Matter Capacity 300 Sight Range 16 Terrain Scan Range 16 Terrain Scan Density 10 Armor Coverage 800 Evasion (%) 55 Recoil Reduction 1 Defensive Hacking 10 Item Schematics ----------------- None Robot Schematics ------------------ None Fabricated ------------ Nothing Repaired ---------- Hcp. Storage Unit | 47% | -10/Materials Autogun | 76% | -10/Materials Studied --------- None Alien Tech Used ----------------- None Achievements -------------- None Challenges ------------ None Game ------ Seed PhysicsCarbideJets Manual? 0 Play Time 01:25:25 Cumulative 724.2 hours Start 2025.11.25 @ 03:53:12 End 2025.11.25 @ 05:23:22 Sessions 1 Manual Loads 0 Difficulty Rogue Special Mode None Game No. 506 Rogue 506 Adventurer 0 Explorer 0 Win Type - Total 1 Types 1/0/0/0/0/0/0/0/0/0 Lore% 71 Gallery% 67 Achievement% 46 Wizard Run 0 Options --------- Layout 1 ASCII 0 Keyboard 0 Movement Mouse Keybinds 0 Fullscreen 1 Font 20/SmallcapsGlow Map View 54x42 Zoom Use 0% Tactical HUD 1 Map Filters NONE Filters NONE Steam 1 RUN: 492e4b27-13b3-47b2-9af8-463b52661783